[Event "Live Chess"]
[Site "Chess.com"]
[Date "2023.09.16"]
[Round "-"]
[White "Jonas_Rodrigues"]
[Black "Japaawz"]
[Result "1-0"]
[WhiteElo "1288"]
[BlackElo "413"]
[TimeControl "900+5"]
[EndTime "16:07:31 PDT"]
[Termination "Jonas_Rodrigues venceu por desistência"]

1. e4 {[%clk 0:15:04]} 1... e5 {[%clk 0:14:56.5]} 2. Nf3 {[%clk 0:15:07.8]} 2...
d6 {[%clk 0:15:01.4]} 3. Bc4 {[%clk 0:15:10.5]} 3... Be6 {[%clk 0:15:03.4]} 4.
Bxe6 {[%clk 0:15:12.5]} 4... fxe6 {[%clk 0:15:05.7]} 5. Nc3 {[%clk 0:15:16.6]}
5... Nc6 {[%clk 0:15:09.4]} 6. O-O {[%clk 0:15:19.6]} 6... d5 {[%clk 0:15:08.6]}
7. exd5 {[%clk 0:15:18.7]} 7... exd5 {[%clk 0:15:12.5]} 8. Re1 {[%clk
0:15:19.8]} 8... d4 {[%clk 0:15:11.9]} 9. Nxe5 {[%clk 0:15:17.6]} 9... dxc3
{[%clk 0:15:11.5]} 10. Nxc6+ {[%clk 0:15:21.3]} 10... Be7 {[%clk 0:15:06.7]} 11.
Nxd8 {[%clk 0:15:13.6]} 11... Rxd8 {[%clk 0:15:11.6]} 12. Qh5+ {[%clk
0:15:12.4]} 12... g6 {[%clk 0:15:12.9]} 13. Qe5 {[%clk 0:14:35.2]} 13... h5
{[%clk 0:14:56.6]} 14. Qxh8 {[%clk 0:14:35.5]} 14... cxd2 {[%clk 0:14:50.4]} 15.
Qxg8+ {[%clk 0:14:34]} 15... Kd7 {[%clk 0:14:52.6]} 16. Rxe7+ {[%clk 0:14:17.2]}
16... Kxe7 {[%clk 0:14:52.4]} 17. Qg7+ {[%clk 0:14:16.4]} 17... Ke8 {[%clk
0:14:55]} 18. Qxg6+ {[%clk 0:14:17.6]} 18... Kf8 {[%clk 0:14:57]} 19. Qf6+
{[%clk 0:14:16.2]} 19... Ke8 {[%clk 0:14:58.8]} 20. Bxd2 {[%clk 0:14:15.1]}
20... Rxd2 {[%clk 0:15:02]} 21. Re1+ {[%clk 0:14:18.2]} 21... Kd7 {[%clk
0:15:03.6]} 22. Qe6+ {[%clk 0:14:20.9]} 22... Kd8 {[%clk 0:15:07]} 23. Qe7+
{[%clk 0:14:24.3]} 23... Kc8 {[%clk 0:15:08.9]} 24. Qe6+ {[%clk 0:14:26.9]}
24... Kd8 {[%clk 0:15:12.1]} 25. Qf6+ {[%clk 0:14:28.3]} 25... Kc8 {[%clk
0:15:07]} 26. Qf5+ {[%clk 0:14:32.2]} 26... Kd8 {[%clk 0:15:09.4]} 27. Qg5+
{[%clk 0:14:36.1]} 27... Kc8 {[%clk 0:15:12]} 28. Qxd2 {[%clk 0:14:40.6]} 1-0

[Event "Live Chess"]
[Site "Chess.com"]
[Date "2023.09.16"]
[Round "-"]
[White "Joasgodoy"]
[Black "Mell46"]
[Result "0-1"]
[WhiteElo "681"]
[BlackElo "1396"]
[TimeControl "900+5"]
[EndTime "16:07:32 PDT"]
[Termination "Mell46 venceu por xeque-mate"]

1. d4 {[%clk 0:15:00.1]} 1... d5 {[%clk 0:15:03]} 2. c4 {[%clk 0:15:02.7]} 2...
e6 {[%clk 0:15:01.9]} 3. Nf3 {[%clk 0:15:01.5]} 3... Bb4+ {[%clk 0:15:03.5]} 4.
Bd2 {[%clk 0:15:02.5]} 4... Bxd2+ {[%clk 0:14:55.1]} 5. Nbxd2 {[%clk 0:15:02.2]}
5... Nf6 {[%clk 0:14:59.5]} 6. e3 {[%clk 0:15:01.1]} 6... O-O {[%clk 0:15:01.4]}
7. Ne5 {[%clk 0:14:52.8]} 7... Nbd7 {[%clk 0:14:34]} 8. Bd3 {[%clk 0:14:44.3]}
8... Nxe5 {[%clk 0:14:26.4]} 9. dxe5 {[%clk 0:14:39.4]} 9... Nd7 {[%clk
0:14:09.4]} 10. Qc2 {[%clk 0:14:40.3]} 10... g6 {[%clk 0:14:04.6]} 11. Nf3
{[%clk 0:14:33.4]} 11... Nc5 {[%clk 0:14:03.2]} 12. O-O {[%clk 0:13:56.8]} 12...
Nxd3 {[%clk 0:14:04.3]} 13. Qxd3 {[%clk 0:13:53.8]} 13... c6 {[%clk 0:14:07]}
14. cxd5 {[%clk 0:13:27.7]} 14... cxd5 {[%clk 0:14:08.9]} 15. Rac1 {[%clk
0:13:26]} 15... Bd7 {[%clk 0:13:48.4]} 16. h4 {[%clk 0:13:25.4]} 16... a6 {[%clk
0:13:50.4]} 17. Ng5 {[%clk 0:13:27.1]} 17... Bb5 {[%clk 0:13:49.9]} 18. Qd2
{[%clk 0:13:08.9]} 18... Bxf1 {[%clk 0:13:52]} 19. e4 {[%clk 0:12:52.1]} 19...
Bb5 {[%clk 0:13:25.2]} 20. Nf3 {[%clk 0:12:43.4]} 20... dxe4 {[%clk 0:12:53.6]}
21. Qh6 {[%clk 0:12:05.6]} 21... exf3 {[%clk 0:12:48.8]} 22. g3 {[%clk
0:11:58.6]} 22... Rc8 {[%clk 0:12:42.5]} 23. h5 {[%clk 0:11:19.4]} 23... Rxc1+
{[%clk 0:12:19.4]} 24. Qxc1 {[%clk 0:11:21.3]} 24... Qd3 {[%clk 0:12:03.9]} 25.
h6 {[%clk 0:10:13.5]} 25... Rd8 {[%clk 0:11:57.4]} 26. Qf4 {[%clk 0:10:09.6]}
26... Qf1+ {[%clk 0:11:59.4]} 27. Kh2 {[%clk 0:10:12]} 27... Qg2# {[%clk
0:12:02.8]} 0-1

[Event "Live Chess"]
[Site "Chess.com"]
[Date "2023.09.16"]
[Round "-"]
[White "Luisgustavo100"]
[Black "CroNmo"]
[Result "0-1"]
[WhiteElo "947"]
[BlackElo "1834"]
[TimeControl "900+5"]
[EndTime "16:07:50 PDT"]
[Termination "CroNmo venceu por desistência"]

1. e4 {[%clk 0:15:01.8]} 1... c5 {[%clk 0:15:03.7]} 2. Nf3 {[%clk 0:15:03.9]}
2... e6 {[%clk 0:15:06.4]} 3. d4 {[%clk 0:15:02.2]} 3... cxd4 {[%clk 0:15:10.6]}
4. Nxd4 {[%clk 0:15:04.9]} 4... Nf6 {[%clk 0:15:14.1]} 5. Nc3 {[%clk 0:15:05.8]}
5... d6 {[%clk 0:15:18.2]} 6. Bd3 {[%clk 0:14:32.9]} 6... Be7 {[%clk 0:15:21.4]}
7. O-O {[%clk 0:14:34.8]} 7... Nc6 {[%clk 0:15:24.7]} 8. Be3 {[%clk 0:14:16.8]}
8... Bd7 {[%clk 0:15:25.6]} 9. Re1 {[%clk 0:14:13.1]} 9... Nxd4 {[%clk
0:15:28.5]} 10. Bxd4 {[%clk 0:14:16.2]} 10... e5 {[%clk 0:15:30]} 11. Be3 {[%clk
0:14:04.7]} 11... O-O {[%clk 0:15:34.2]} 12. Nd5 {[%clk 0:13:59.1]} 12... Nxd5
{[%clk 0:14:20.4]} 13. exd5 {[%clk 0:14:01.6]} 13... f5 {[%clk 0:14:24.8]} 14.
Rc1 {[%clk 0:13:56.5]} 14... e4 {[%clk 0:14:22.1]} 15. Bf1 {[%clk 0:13:42.4]}
15... f4 {[%clk 0:14:25.3]} 16. Bd4 {[%clk 0:13:27.7]} 16... f3 {[%clk
0:14:28.8]} 17. g3 {[%clk 0:13:16.1]} 17... Bf5 {[%clk 0:14:28]} 18. c4 {[%clk
0:12:54.6]} 18... Qd7 {[%clk 0:14:24.4]} 19. c5 {[%clk 0:12:19.1]} 19... dxc5
{[%clk 0:14:21.8]} 20. Bxc5 {[%clk 0:12:19.1]} 20... Bd6 {[%clk 0:14:21.1]} 21.
Bxd6 {[%clk 0:12:19.2]} 21... Qxd6 {[%clk 0:14:23.5]} 22. Qd4 {[%clk 0:11:38.7]}
22... Qd7 {[%clk 0:14:23.3]} 23. d6 {[%clk 0:11:18.3]} 23... Rad8 {[%clk
0:14:19.2]} 24. Red1 {[%clk 0:10:53.3]} 24... h6 {[%clk 0:14:12.6]} 25. Qxa7
{[%clk 0:10:51.9]} 25... Bh3 {[%clk 0:14:11.2]} 26. Bxh3 {[%clk 0:10:46.6]}
26... Qxh3 {[%clk 0:14:14.4]} 0-1

[Event "Live Chess"]
[Site "Chess.com"]
[Date "2023.09.16"]
[Round "-"]
[White "angelinho2006"]
[Black "Larissa1413"]
[Result "1/2-1/2"]
[WhiteElo "2090"]
[BlackElo "1917"]
[TimeControl "900+5"]
[EndTime "16:08:05 PDT"]
[Termination "Empate por repetição"]

1. e4 {[%clk 0:15:04.2]} 1... e6 {[%clk 0:14:38.1]} 2. d4 {[%clk 0:15:04.9]}
2... d5 {[%clk 0:14:39.1]} 3. Nc3 {[%clk 0:15:08.1]} 3... Nf6 {[%clk 0:14:41.6]}
4. e5 {[%clk 0:15:12.3]} 4... Nfd7 {[%clk 0:14:44.6]} 5. Nce2 {[%clk 0:15:17]}
5... c5 {[%clk 0:14:47.6]} 6. c3 {[%clk 0:15:21.7]} 6... Nc6 {[%clk 0:14:50.5]}
7. f4 {[%clk 0:15:14.2]} 7... Qb6 {[%clk 0:14:48.9]} 8. Nf3 {[%clk 0:15:15.7]}
8... cxd4 {[%clk 0:14:40.5]} 9. cxd4 {[%clk 0:15:16.7]} 9... Bb4+ {[%clk
0:14:23.7]} 10. Bd2 {[%clk 0:15:19.7]} 10... f6 {[%clk 0:14:18.5]} 11. Bxb4
{[%clk 0:15:19.8]} 11... Qxb4+ {[%clk 0:14:20]} 12. Qd2 {[%clk 0:15:24.2]} 12...
Qxd2+ {[%clk 0:14:18.2]} 13. Kxd2 {[%clk 0:15:25.4]} 13... fxe5 {[%clk 0:14:21]}
14. fxe5 {[%clk 0:15:25.3]} 14... O-O {[%clk 0:14:23.4]} 15. Nc3 {[%clk
0:15:06.9]} 15... a6 {[%clk 0:14:18.1]} 16. Ke3 {[%clk 0:14:35]} 16... h6 {[%clk
0:13:57]} 17. Bd3 {[%clk 0:13:51.5]} 17... Nb6 {[%clk 0:13:24.7]} 18. Nd2 {[%clk
0:13:15.9]} 18... Bd7 {[%clk 0:13:24.4]} 19. Raf1 {[%clk 0:12:49.9]} 19... Nb4
{[%clk 0:13:16.5]} 20. Bb1 {[%clk 0:12:50.6]} 20... Na4 {[%clk 0:12:13.4]} 21.
g4 {[%clk 0:12:11.1]} 21... Nxb2 {[%clk 0:11:54.8]} 22. a3 {[%clk 0:12:06.2]}
22... Nc6 {[%clk 0:11:48.8]} 23. h4 {[%clk 0:11:53.8]} 23... Na5 {[%clk
0:11:40.1]} 24. g5 {[%clk 0:11:11.9]} 24... hxg5 {[%clk 0:11:15.2]} 25. hxg5
{[%clk 0:11:10.7]} 25... Nac4+ {[%clk 0:11:14.7]} 26. Ke2 {[%clk 0:10:38.3]}
26... Nxd2 {[%clk 0:11:14.8]} 27. Bh7+ {[%clk 0:10:41.7]} 27... Kh8 {[%clk
0:11:10.6]} 28. Bg6+ {[%clk 0:10:44.9]} 28... Kg8 {[%clk 0:11:10.5]} 29. Bh7+
{[%clk 0:10:12.5]} 29... Kh8 {[%clk 0:11:12.7]} 30. Bg6+ {[%clk 0:10:16.7]}
30... Kg8 {[%clk 0:11:14.6]} 31. Bh7+ {[%clk 0:10:21.6]} 1/2-1/2

[Event "Live Chess"]
[Site "Chess.com"]
[Date "2023.09.16"]
[Round "-"]
[White "Yurxx21"]
[Black "ViniciusBritoFc"]
[Result "1-0"]
[WhiteElo "1492"]
[BlackElo "1191"]
[TimeControl "900+5"]
[EndTime "16:08:08 PDT"]
[Termination "Yurxx21 venceu por desistência"]

1. e4 {[%clk 0:15:01.9]} 1... c5 {[%clk 0:14:43.6]} 2. Nf3 {[%clk 0:15:04.4]}
2... a6 {[%clk 0:14:46.2]} 3. d4 {[%clk 0:15:06.4]} 3... cxd4 {[%clk 0:14:48.5]}
4. Nxd4 {[%clk 0:15:11.3]} 4... e5 {[%clk 0:14:53]} 5. Nf3 {[%clk 0:15:13.8]}
5... Nc6 {[%clk 0:14:56.6]} 6. Nc3 {[%clk 0:15:11]} 6... Bb4 {[%clk 0:14:59.5]}
7. Bd2 {[%clk 0:15:14.2]} 7... Bxc3 {[%clk 0:15:04.4]} 8. Bxc3 {[%clk
0:15:17.6]} 8... Qe7 {[%clk 0:15:07.3]} 9. Be2 {[%clk 0:14:50]} 9... Nf6 {[%clk
0:14:56.5]} 10. O-O {[%clk 0:14:45.8]} 10... Nxe4 {[%clk 0:14:58.2]} 11. Re1
{[%clk 0:14:31.7]} 11... Nxc3 {[%clk 0:14:56.4]} 12. bxc3 {[%clk 0:14:36.6]}
12... f6 {[%clk 0:14:45.2]} 13. Bd3 {[%clk 0:14:26.6]} 13... O-O {[%clk
0:14:39.8]} 14. Be4 {[%clk 0:14:15.2]} 14... Qc5 {[%clk 0:14:34.7]} 15. Qd3
{[%clk 0:14:11.6]} 15... d6 {[%clk 0:13:02.5]} 16. Bxh7+ {[%clk 0:14:10.6]}
16... Kf7 {[%clk 0:13:05.7]} 17. Rad1 {[%clk 0:13:41.9]} 17... Ke7 {[%clk
0:12:27.5]} 18. Nd4 {[%clk 0:13:21.7]} 18... Kd7 {[%clk 0:12:25.5]} 19. Bf5+
{[%clk 0:12:51.8]} 19... Kc7 {[%clk 0:12:28.5]} 20. Bxc8 {[%clk 0:12:42.8]}
20... Raxc8 {[%clk 0:12:33.1]} 21. Ne6+ {[%clk 0:12:45.1]} 21... Kb8 {[%clk
0:12:32.3]} 22. Nxc5 {[%clk 0:12:46.7]} 22... dxc5 {[%clk 0:12:31.4]} 23. Qd6+
{[%clk 0:12:44.5]} 23... Ka7 {[%clk 0:12:33.9]} 24. Rb1 {[%clk 0:12:43.1]} 24...
Rcd8 {[%clk 0:12:25.6]} 25. Qxc5+ {[%clk 0:12:41.6]} 1-0

[Event "Live Chess"]
[Site "Chess.com"]
[Date "2023.09.16"]
[Round "-"]
[White "abcgames2904"]
[Black "Ferazo"]
[Result "0-1"]
[WhiteElo "1188"]
[BlackElo "1423"]
[TimeControl "900+5"]
[EndTime "16:09:25 PDT"]
[Termination "Ferazo venceu por xeque-mate"]

1. Nf3 {[%clk 0:14:58.6]} 1... d5 {[%clk 0:15:01.6]} 2. g3 {[%clk 0:15:02.7]}
2... Bf5 {[%clk 0:15:04.5]} 3. Bg2 {[%clk 0:15:07]} 3... Nf6 {[%clk 0:15:08]} 4.
d4 {[%clk 0:15:08.6]} 4... e6 {[%clk 0:15:11.3]} 5. O-O {[%clk 0:15:09.8]} 5...
c5 {[%clk 0:15:15.2]} 6. Bg5 {[%clk 0:15:14.5]} 6... Nc6 {[%clk 0:15:14.5]} 7.
e3 {[%clk 0:15:16.4]} 7... Be7 {[%clk 0:15:09.2]} 8. Bxf6 {[%clk 0:15:18.8]}
8... Bxf6 {[%clk 0:15:11.3]} 9. Nbd2 {[%clk 0:15:18.8]} 9... Rc8 {[%clk
0:15:05.6]} 10. b3 {[%clk 0:15:22.4]} 10... cxd4 {[%clk 0:15:04]} 11. exd4
{[%clk 0:15:25.8]} 11... O-O {[%clk 0:15:07.9]} 12. c4 {[%clk 0:15:29]} 12...
Bg4 {[%clk 0:15:04.7]} 13. h3 {[%clk 0:15:30.7]} 13... Bh5 {[%clk 0:14:52.6]}
14. g4 {[%clk 0:15:34.4]} 14... Bg6 {[%clk 0:14:56.6]} 15. cxd5 {[%clk
0:15:35.4]} 15... exd5 {[%clk 0:14:59.3]} 16. Rb1 {[%clk 0:15:38.3]} 16... Nxd4
{[%clk 0:15:02.1]} 17. Nxd4 {[%clk 0:15:36.9]} 17... Bxd4 {[%clk 0:15:07]} 18.
Nf3 {[%clk 0:15:37.3]} 18... Bxb1 {[%clk 0:15:04.9]} 19. Nxd4 {[%clk 0:15:37.1]}
19... Be4 {[%clk 0:14:59.4]} 20. f3 {[%clk 0:15:39.6]} 20... Bg6 {[%clk
0:15:02.3]} 21. h4 {[%clk 0:15:40.3]} 21... Qxh4 {[%clk 0:14:56]} 22. Nb5 {[%clk
0:15:30.5]} 22... Rc2 {[%clk 0:14:40.3]} 23. Nxa7 {[%clk 0:15:07.4]} 23... Qg3
{[%clk 0:14:35.2]} 24. Qxc2 {[%clk 0:14:51.5]} 24... Bxc2 {[%clk 0:14:36.4]} 25.
Rc1 {[%clk 0:14:56.3]} 25... Bg6 {[%clk 0:14:30.7]} 26. Nb5 {[%clk 0:15:00.4]}
26... Re8 {[%clk 0:14:30.4]} 27. Kf1 {[%clk 0:14:51.3]} 27... Bd3+ {[%clk
0:14:24.3]} 28. Kg1 {[%clk 0:14:51.2]} 28... Re1+ {[%clk 0:14:20.2]} 29. Rxe1
{[%clk 0:14:52]} 29... Qxe1+ {[%clk 0:14:23.4]} 30. Kh2 {[%clk 0:14:56.7]} 30...
Bxb5 {[%clk 0:14:26.4]} 31. a4 {[%clk 0:15:01.1]} 31... Bd7 {[%clk 0:14:27.9]}
32. Kh3 {[%clk 0:15:04.2]} 32... d4 {[%clk 0:14:31.9]} 33. f4 {[%clk 0:15:07]}
33... d3 {[%clk 0:14:36.3]} 34. Bxb7 {[%clk 0:15:10.6]} 34... d2 {[%clk
0:14:38.1]} 35. Bg2 {[%clk 0:15:12.8]} 35... d1=Q {[%clk 0:14:41.2]} 36. b4
{[%clk 0:15:17.5]} 36... Qd3+ {[%clk 0:14:40.1]} 37. Kh2 {[%clk 0:15:21.6]}
37... Bxg4 {[%clk 0:14:41.6]} 38. b5 {[%clk 0:15:22.7]} 38... Qee3 {[%clk
0:14:37.1]} 39. Kh1 {[%clk 0:15:25.1]} 39... Bf3 {[%clk 0:14:36.1]} 40. Bxf3
{[%clk 0:15:28.2]} 40... Qxf3+ {[%clk 0:14:41]} 41. Kh2 {[%clk 0:15:32.7]} 41...
Qg3+ {[%clk 0:14:44.6]} 42. Kh1 {[%clk 0:15:36.7]} 42... Qd1# {[%clk 0:14:49.1]}
0-1

[Event "Live Chess"]
[Site "Chess.com"]
[Date "2023.09.16"]
[Round "-"]
[White "Gabriel0298"]
[Black "FerreiraPedro"]
[Result "1-0"]
[WhiteElo "1608"]
[BlackElo "1396"]
[TimeControl "900+5"]
[EndTime "16:09:43 PDT"]
[Termination "Gabriel0298 venceu por desistência"]

1. e4 {[%clk 0:15:04.2]} 1... e5 {[%clk 0:15:00.5]} 2. Nf3 {[%clk 0:15:06.4]}
2... Nf6 {[%clk 0:14:57.2]} 3. Nxe5 {[%clk 0:15:10]} 3... d6 {[%clk 0:15:01]} 4.
Nf3 {[%clk 0:15:13.8]} 4... Nxe4 {[%clk 0:15:05.4]} 5. Nc3 {[%clk 0:15:18.2]}
5... Nxc3 {[%clk 0:15:09.1]} 6. bxc3 {[%clk 0:15:23.1]} 6... d5 {[%clk
0:15:06.7]} 7. d4 {[%clk 0:15:27.4]} 7... Bd6 {[%clk 0:15:05.9]} 8. Bd3 {[%clk
0:15:31.1]} 8... Bg4 {[%clk 0:15:08.4]} 9. O-O {[%clk 0:15:33.9]} 9... O-O
{[%clk 0:15:12.5]} 10. h3 {[%clk 0:15:37.9]} 10... Bh5 {[%clk 0:15:13.3]} 11.
Bg5 {[%clk 0:15:34.6]} 11... Bxf3 {[%clk 0:15:11.3]} 12. Bxd8 {[%clk 0:15:32.6]}
12... Bxd1 {[%clk 0:15:14.8]} 13. Bxc7 {[%clk 0:15:21.6]} 13... Bxc2 {[%clk
0:15:08.5]} 14. Bxd6 {[%clk 0:15:19.7]} 14... Bxd3 {[%clk 0:15:12.6]} 15. Rfd1
{[%clk 0:15:20.9]} 15... Rd8 {[%clk 0:15:14.4]} 16. Bxb8 {[%clk 0:15:24.8]}
16... Be2 {[%clk 0:15:07.8]} 17. Re1 {[%clk 0:15:23.7]} 17... Raxb8 {[%clk
0:15:07.5]} 18. Rxe2 {[%clk 0:15:27.7]} 18... Re8 {[%clk 0:15:11.5]} 19. Rae1
{[%clk 0:15:31.5]} 19... Kf8 {[%clk 0:15:10.3]} 20. Re5 {[%clk 0:15:30.5]} 20...
f6 {[%clk 0:15:12.7]} 21. Rxe8+ {[%clk 0:15:29.3]} 21... Rxe8 {[%clk 0:15:17.6]}
22. Rxe8+ {[%clk 0:15:33.2]} 22... Kxe8 {[%clk 0:15:22.5]} 23. Kf1 {[%clk
0:15:37.6]} 23... Ke7 {[%clk 0:15:25.1]} 24. Ke2 {[%clk 0:15:42]} 24... Kd6
{[%clk 0:15:29.6]} 25. Kd3 {[%clk 0:15:46.9]} 25... Kc6 {[%clk 0:15:34]} 26. c4
{[%clk 0:15:51.3]} 26... dxc4+ {[%clk 0:15:38]} 27. Kxc4 {[%clk 0:15:56.2]}
27... Kd6 {[%clk 0:15:42.3]} 28. d5 {[%clk 0:16:00.2]} 28... b6 {[%clk
0:15:46.3]} 29. Kd4 {[%clk 0:16:04.2]} 29... g6 {[%clk 0:15:50.5]} 30. g4 {[%clk
0:16:07.8]} 30... h6 {[%clk 0:15:50.5]} 31. f4 {[%clk 0:16:11.5]} 31... g5
{[%clk 0:15:42.6]} 32. f5 {[%clk 0:16:15.2]} 32... a6 {[%clk 0:15:43.7]} 33. a4
{[%clk 0:16:13.5]} 33... a5 {[%clk 0:15:45.1]} 34. Kc4 {[%clk 0:16:16.2]} 34...
Kd7 {[%clk 0:15:31.1]} 35. Kb5 {[%clk 0:16:19]} 35... Kc7 {[%clk 0:15:28.3]} 36.
d6+ {[%clk 0:16:23.1]} 36... Kxd6 {[%clk 0:15:32.6]} 37. Kxb6 {[%clk 0:16:28]}
37... Kd5 {[%clk 0:15:31.8]} 38. Kxa5 {[%clk 0:16:32.5]} 38... Kc5 {[%clk
0:15:36.4]} 39. Ka6 {[%clk 0:16:31.6]} 39... Kc6 {[%clk 0:15:40.4]} 40. Ka7
{[%clk 0:16:34.2]} 40... Kc7 {[%clk 0:15:42.6]} 41. Ka6 {[%clk 0:16:36.4]} 41...
Kc6 {[%clk 0:15:46.8]} 42. a5 {[%clk 0:16:40.1]} 42... Kc7 {[%clk 0:15:27.9]}
43. Kb5 {[%clk 0:16:41.8]} 43... Kb7 {[%clk 0:15:30]} 44. Kc5 {[%clk 0:16:44.4]}
44... Kc7 {[%clk 0:15:32.3]} 45. Kd5 {[%clk 0:16:48.2]} 1-0

[Event "Live Chess"]
[Site "Chess.com"]
[Date "2023.09.16"]
[Round "-"]
[White "IMelefante38"]
[Black "guto-XVI"]
[Result "0-1"]
[WhiteElo "782"]
[BlackElo "1491"]
[TimeControl "900+5"]
[EndTime "16:12:05 PDT"]
[Termination "guto-XVI venceu por desistência"]

1. d4 {[%clk 0:14:58.4]} 1... Nf6 {[%clk 0:15:03.2]} 2. Nc3 {[%clk 0:15:01.2]}
2... e6 {[%clk 0:15:07.4]} 3. e4 {[%clk 0:14:57.5]} 3... d5 {[%clk 0:15:09.4]}
4. e5 {[%clk 0:15:00.8]} 4... Nfd7 {[%clk 0:15:14]} 5. h4 {[%clk 0:14:58.7]}
5... Bb4 {[%clk 0:15:17.9]} 6. Ne2 {[%clk 0:14:41.6]} 6... c5 {[%clk 0:15:20]}
7. Bg5 {[%clk 0:14:43.1]} 7... f6 {[%clk 0:15:23.7]} 8. exf6 {[%clk 0:14:47.4]}
8... Nxf6 {[%clk 0:15:28.3]} 9. Ng3 {[%clk 0:14:31.4]} 9... O-O {[%clk 0:15:26]}
10. Nh5 {[%clk 0:14:28.4]} 10... Nbd7 {[%clk 0:15:25.9]} 11. Bd3 {[%clk
0:14:13.5]} 11... cxd4 {[%clk 0:15:19.3]} 12. Qc1 {[%clk 0:13:44.3]} 12... dxc3
{[%clk 0:15:16.7]} 13. Nxg7 {[%clk 0:13:47.3]} 13... Kxg7 {[%clk 0:15:17.2]} 14.
Bh6+ {[%clk 0:13:47]} 14... Kg8 {[%clk 0:15:20.2]} 15. Qg5+ {[%clk 0:13:31.2]}
15... Kf7 {[%clk 0:15:13.2]} 16. Bxf8 {[%clk 0:12:57.5]} 16... cxb2+ {[%clk
0:15:14.2]} 17. Ke2 {[%clk 0:12:54.6]} 17... bxa1=Q {[%clk 0:15:15.6]} 18. Rxa1
{[%clk 0:11:52.4]} 18... Qxf8 {[%clk 0:15:15.8]} 19. a3 {[%clk 0:11:50.2]} 19...
Bc3 {[%clk 0:15:19.7]} 20. Rh1 {[%clk 0:11:35.9]} 20... Qg8 {[%clk 0:15:15.5]}
21. f4 {[%clk 0:10:55.5]} 21... Bb2 {[%clk 0:15:01.5]} 22. h5 {[%clk 0:10:34.8]}
22... Qxg5 {[%clk 0:15:01.2]} 23. fxg5 {[%clk 0:10:39]} 23... Ng8 {[%clk
0:15:01.8]} 24. Bxh7 {[%clk 0:10:38.9]} 24... Ne7 {[%clk 0:14:40.3]} 25. h6
{[%clk 0:10:41.9]} 25... Nf8 {[%clk 0:14:43.8]} 26. Rf1+ {[%clk 0:08:41.1]}
26... Ke8 {[%clk 0:14:45]} 27. Rxf8+ {[%clk 0:08:21.2]} 27... Kxf8 {[%clk
0:14:46.6]} 28. g6 {[%clk 0:08:15.6]} 28... Nxg6 {[%clk 0:14:46.5]} 29. Bxg6
{[%clk 0:08:12.7]} 29... Bd7 {[%clk 0:14:50.7]} 30. h7 {[%clk 0:07:54.3]} 30...
Ke7 {[%clk 0:14:49.6]} 0-1

[Event "Live Chess"]
[Site "Chess.com"]
[Date "2023.09.16"]
[Round "-"]
[White "stopgivingup"]
[Black "Frogstetic"]
[Result "0-1"]
[WhiteElo "975"]
[BlackElo "2014"]
[TimeControl "900+5"]
[EndTime "16:12:19 PDT"]
[Termination "Frogstetic venceu por xeque-mate"]

1. c4 {[%clk 0:15:02.5]} 1... Nf6 {[%clk 0:15:03.3]} 2. d4 {[%clk 0:15:01]} 2...
g6 {[%clk 0:15:06.3]} 3. Nc3 {[%clk 0:15:04.1]} 3... Bg7 {[%clk 0:15:09.3]} 4.
e4 {[%clk 0:14:59.7]} 4... d6 {[%clk 0:15:13.1]} 5. Nge2 {[%clk 0:15:01.1]} 5...
O-O {[%clk 0:15:16.7]} 6. g3 {[%clk 0:15:04.9]} 6... Bg4 {[%clk 0:15:12.1]} 7.
Bg2 {[%clk 0:14:54.8]} 7... Qd7 {[%clk 0:15:14.9]} 8. f3 {[%clk 0:14:57]} 8...
Bh3 {[%clk 0:15:17.4]} 9. O-O {[%clk 0:14:57.6]} 9... Bxg2 {[%clk 0:15:19.5]}
10. Kxg2 {[%clk 0:15:00.8]} 10... Nc6 {[%clk 0:15:00.1]} 11. Be3 {[%clk
0:14:36.1]} 11... e5 {[%clk 0:14:47.8]} 12. d5 {[%clk 0:14:08.8]} 12... Ne7
{[%clk 0:14:48.6]} 13. Qd3 {[%clk 0:13:20.5]} 13... Ne8 {[%clk 0:14:34.6]} 14.
b4 {[%clk 0:12:47.9]} 14... f5 {[%clk 0:14:35.6]} 15. f4 {[%clk 0:11:44]} 15...
fxe4 {[%clk 0:14:27.2]} 16. Nxe4 {[%clk 0:11:44.3]} 16... Nf5 {[%clk 0:14:17.6]}
17. fxe5 {[%clk 0:11:01.8]} 17... dxe5 {[%clk 0:14:18.4]} 18. N2c3 {[%clk
0:10:18.9]} 18... Ned6 {[%clk 0:14:16.5]} 19. Bc5 {[%clk 0:09:14.3]} 19... b6
{[%clk 0:13:57.5]} 20. Bxd6 {[%clk 0:09:03.8]} 20... cxd6 {[%clk 0:14:02.4]} 21.
c5 {[%clk 0:08:09.6]} 21... dxc5 {[%clk 0:13:21]} 22. bxc5 {[%clk 0:08:09.7]}
22... Bh6 {[%clk 0:13:21.3]} 23. Rae1 {[%clk 0:07:43.1]} 23... Rac8 {[%clk
0:12:50.4]} 24. d6 {[%clk 0:06:37.5]} 24... Ne3+ {[%clk 0:12:03.7]} 25. Rxe3
{[%clk 0:06:33.3]} 25... Bxe3 {[%clk 0:12:04.5]} 26. Qxe3 {[%clk 0:06:34.8]}
26... Rxf1 {[%clk 0:12:07.1]} 27. Kxf1 {[%clk 0:06:35]} 27... Qf5+ {[%clk
0:10:57.6]} 28. Kg2 {[%clk 0:06:23.5]} 28... bxc5 {[%clk 0:10:26.7]} 29. Nxc5
{[%clk 0:06:22.2]} 29... Rf8 {[%clk 0:09:47.6]} 30. Nd5 {[%clk 0:06:02.7]} 30...
Qf1# {[%clk 0:09:50.1]} 0-1

[Event "Live Chess"]
[Site "Chess.com"]
[Date "2023.09.16"]
[Round "-"]
[White "Fellipezin"]
[Black "RDW085"]
[Result "1-0"]
[WhiteElo "1601"]
[BlackElo "1398"]
[TimeControl "900+5"]
[EndTime "16:13:38 PDT"]
[Termination "Fellipezin venceu por xeque-mate"]

1. c4 {[%clk 0:14:58.8]} 1... c6 {[%clk 0:15:01.1]} 2. Nc3 {[%clk 0:14:56.3]}
2... Nf6 {[%clk 0:15:03.9]} 3. g3 {[%clk 0:14:57.5]} 3... g6 {[%clk 0:15:08.3]}
4. Bg2 {[%clk 0:15:00.5]} 4... Bg7 {[%clk 0:15:12.8]} 5. Nf3 {[%clk 0:15:02.5]}
5... e6 {[%clk 0:15:17.2]} 6. b3 {[%clk 0:14:50.2]} 6... O-O {[%clk 0:15:21.2]}
7. O-O {[%clk 0:14:51.9]} 7... d5 {[%clk 0:15:25]} 8. Bb2 {[%clk 0:14:44.3]}
8... Re8 {[%clk 0:15:27.4]} 9. d3 {[%clk 0:14:18.8]} 9... Nbd7 {[%clk
0:15:21.9]} 10. Qc2 {[%clk 0:13:58.8]} 10... Qc7 {[%clk 0:15:18.7]} 11. cxd5
{[%clk 0:13:44.4]} 11... exd5 {[%clk 0:15:22.1]} 12. Rac1 {[%clk 0:13:38.1]}
12... Nb6 {[%clk 0:15:14.4]} 13. Rfe1 {[%clk 0:12:55.2]} 13... Be6 {[%clk
0:15:11.5]} 14. e4 {[%clk 0:12:53.8]} 14... dxe4 {[%clk 0:15:04.4]} 15. dxe4
{[%clk 0:12:55.4]} 15... Rad8 {[%clk 0:15:00.8]} 16. Ng5 {[%clk 0:12:37.6]}
16... Bc8 {[%clk 0:14:48.8]} 17. Nb5 {[%clk 0:10:44.4]} 17... Qb8 {[%clk
0:14:11.3]} 18. e5 {[%clk 0:10:16.9]} 18... Nfd5 {[%clk 0:13:48.6]} 19. Nd6
{[%clk 0:09:59.2]} 19... Re7 {[%clk 0:12:50.7]} 20. Ba3 {[%clk 0:07:45.2]} 20...
Rxe5 {[%clk 0:12:43.2]} 21. Rxe5 {[%clk 0:07:46.4]} 21... Bxe5 {[%clk
0:12:48.1]} 22. Ndxf7 {[%clk 0:07:42.5]} 22... Rd7 {[%clk 0:12:38.1]} 23. Bxd5
{[%clk 0:06:23.5]} 23... Nxd5 {[%clk 0:12:18.4]} 24. Qc5 {[%clk 0:06:12.3]}
24... h6 {[%clk 0:08:18.5]} 25. Qf8# {[%clk 0:06:06.7]} 1-0